fUST/lending_fUST_20250801
["ID","MTS","AMOUNT","RATE_DAILY","PERIOD"]
[376505991,1753999840808,-1779.93843898,0.00019178,2]
[376506011,1753999840996,-3961.41155142,0.00019178,2]
[376506013,1753999841005,-460.0,0.00019178,2]
[376506015,1753999841015,-1492.04,0.00019178,2]
[376506017,1753999841025,-2116.53,0.00019178,2]
[376506019,1753999841034,-460.0,0.00019178,2]
[376506021,1753999841043,-460.0,0.00019178,2]
[376506023,1753999841053,-460.0,0.00019178,2]
[376506025,1753999841065,-460.0,0.00019178,2]
[376506027,1753999841074,-460.0,0.00019178,2]
[376506029,1753999841084,-501.74,0.00019178,2]
[376506031,1753999841094,-460.0,0.00019178,2]
[376506033,1753999841103,-460.0,0.00019178,2]
[376506035,1753999841113,-727.73,0.00019178,2]
[376506036,1753999841123,-500.0,0.00019178,2]
[376506037,1753999841132,-500.0,0.00019178,2]
[376506038,1753999841142,-460.0,0.00019178,2]
[376506040,1753999841151,-712.08,0.00019178,2]
[376506042,1753999841161,-460.0,0.00019178,2]
[376506044,1753999841170,-460.0,0.00019178,2]
[376506047,1753999841179,-746.65,0.00019178,2]
[376506049,1753999841190,-1101.15,0.00019178,2]
[376506051,1753999841199,-460.0,0.00019178,2]
[376506053,1753999841209,-1134.78,0.00019178,2]
[376506055,1753999841218,-206.82295796,0.00019178,2]
[376506057,1753999841228,-4132.28,0.00019178,2]
[376506059,1753999841237,-460.0,0.00019178,2]
[376506061,1753999841247,-665.6,0.00019178,2]
[376506062,1753999841256,-1613.35,0.00019178,2]
[376506064,1753999841265,-451.81564048,0.00019178,2]
[376506067,1753999841275,-2189.39,0.00019178,2]
[376506068,1753999841285,-460.0,0.00019178,2]
[376506070,1753999841294,-2826.98,0.00019178,2]
[376506072,1753999841303,-460.0,0.00019178,2]
[376506074,1753999841314,-460.0,0.00019178,2]
[376506076,1753999841324,-460.0,0.00019178,2]
[376506078,1753999841333,-749.77,0.00019178,2]
[376506080,1753999841343,-460.0,0.00019178,2]
[376506082,1753999841353,-693.14,0.00019178,2]
[376506085,1753999841362,-460.0,0.00019178,2]
[376506088,1753999841371,-460.0,0.00019178,2]
[376506091,1753999841380,-460.0,0.00019178,2]
[376506094,1753999841390,-460.0,0.00019178,2]
[376506097,1753999841399,-214.50881573,0.00019178,2]
[376506100,1753999841409,-460.0,0.00019178,2]
[376506103,1753999841418,-460.0,0.00019178,2]
[376506106,1753999841427,-460.0,0.00019178,2]
[376506109,1753999841437,-1741.5,0.00019178,2]
[376506112,1753999841446,-340.0,0.00019178,2]
[376506115,1753999841455,-476.04,0.00019178,2]
[376506118,1753999841465,-341.62659241,0.00019178,2]
[376506121,1753999841474,-460.0,0.00019178,2]
[376506124,1753999841484,-460.0,0.00019178,2]
[376506127,1753999841494,-460.0,0.00019178,2]
[376506130,1753999841503,-3069.61,0.00019178,2]
[376506133,1753999841512,-460.0,0.00019178,2]
[376506136,1753999841522,-460.0,0.00019178,2]
[376506138,1753999841531,-460.0,0.00019178,2]
[376506140,1753999841540,-460.0,0.00019178,2]
[376506142,1753999841549,-460.0,0.00019178,2]
[376506144,1753999841563,-460.0,0.00019178,2]
[376506146,1753999841572,-460.0,0.00019178,2]
[376506148,1753999841582,-460.0,0.00019178,2]
[376506150,1753999841594,-477.7,0.00019178,2]
[376506152,1753999841603,-489.24324058,0.00019178,2]
[376506153,1753999841612,-460.0,0.00019178,2]
[376506154,1753999841621,-460.0,0.00019178,2]
[376506155,1753999841630,-500.0,0.00019178,2]
[376506156,1753999841639,-460.0,0.00019178,2]
[376506157,1753999841648,-500.0,0.00019178,2]
[376506158,1753999841657,-500.0,0.00019178,2]
[376506159,1753999841668,-500.0,0.00019178,2]
[376506160,1753999841677,-709.63,0.00019178,2]
[376506161,1753999841687,-500.0,0.00019178,2]
[376506162,1753999841696,-192.826979,0.00019178,2]
[376506163,1753999841705,-36019.06583517,0.00019178,2]
[376506164,1753999841732,-1705.84363234,0.00019178,2]
[376506165,1753999841752,-11109.71013581,0.00019178,2]
[376506166,1753999841766,-462.515536,0.00019178,2]
[376506167,1753999841779,-566.78334563,0.00019178,2]
[376506238,1753999844103,-460.0,0.00019178,2]
[376506240,1753999844113,-136.08151505,0.00019178,2]
[376506242,1753999844123,-40.87077389,0.00019178,2]
[376506247,1753999844164,-144.70272911,0.00019178,2]
[376506249,1753999844174,-2042.33017877,0.00019215,2]
[376506251,1753999844184,-943.00960993,0.00019315,2]
[376506256,1753999844226,-9374.34778061,0.00019315,2]
[376506259,1753999844236,-7790.33439565,0.00019352,2]
[376506261,1753999844245,-500.0,0.00019441,2]
[376506263,1753999844255,-500.0,0.00019451,2]
[376506265,1753999844265,-459.69,0.00019451,2]
[376506267,1753999844276,-500.0,0.00019451,2]
[376506269,1753999844285,-500.0,0.00019451,2]
[376506272,1753999844295,-500.0,0.00019451,2]
[376506274,1753999844304,-500.0,0.00019451,2]
[376506276,1753999844314,-460.0,0.00019452,2]
[376506278,1753999844324,-460.0,0.00019452,2]
[376506281,1753999844333,-460.0,0.00019452,2]
[376506284,1753999844343,-289.11629877,0.00019452,2]
[376506286,1753999844352,-460.0,0.00019452,2]
[376506289,1753999844361,-460.0,0.00019452,2]
[376506292,1753999844370,-460.0,0.00019452,2]
[376506295,1753999844380,-460.0,0.00019452,2]
[376506298,1753999844390,-460.0,0.00019452,2]
[376506300,1753999844400,-460.0,0.00019452,2]
[376506302,1753999844409,-1027.28,0.00019452,2]
[376506304,1753999844418,-460.0,0.00019452,2]
[376506306,1753999844428,-460.0,0.00019452,2]
[376506308,1753999844437,-460.0,0.00019452,2]
[376506310,1753999844446,-460.0,0.00019452,2]
[376506311,1753999844456,-460.0,0.00019452,2]
[376506313,1753999844465,-476.99,0.00019452,2]
[376506315,1753999844475,-460.0,0.00019452,2]
[376506317,1753999844485,-460.0,0.00019452,2]
[376506319,1753999844494,-460.0,0.00019452,2]
[376506321,1753999844504,-460.0,0.00019452,2]
[376506323,1753999844513,-151.0,0.00019452,2]
[376506325,1753999844523,-498.81,0.00019452,2]
[376506327,1753999844533,-460.0,0.00019452,2]
[376506329,1753999844542,-652.24,0.00019452,2]
[376506331,1753999844552,-151.0,0.00019452,2]
[376506333,1753999844563,-669.92,0.00019452,2]
[376506335,1753999844572,-765.73,0.00019452,2]
[376506337,1753999844581,-460.0,0.00019452,2]
[376506339,1753999844591,-591.7,0.00019452,2]
[376506341,1753999844601,-460.0,0.00019452,2]
[376506343,1753999844610,-460.0,0.00019452,2]
[376506345,1753999844619,-151.0,0.00019452,2]
[376506347,1753999844629,-151.0,0.00019452,2]
[376506349,1753999844639,-576.59109754,0.00019452,2]
[376506351,1753999844648,-386.43625856,0.00019452,2]
[376506353,1753999844658,-460.0,0.00019452,2]
[376506355,1753999844667,-2242.22,0.00019452,2]
[376506357,1753999844677,-460.0,0.00019452,2]
[376506359,1753999844686,-151.0,0.00019452,2]
[376506361,1753999844696,-777.89,0.00019452,2]
[376506363,1753999844706,-151.0,0.00019452,2]
[376506365,1753999844715,-1143.02,0.00019452,2]
[376506367,1753999844725,-460.0,0.00019452,2]
[376506369,1753999844735,-460.0,0.00019452,2]
[376506371,1753999844744,-1064.61,0.00019452,2]
[376506373,1753999844754,-806.73,0.00019452,2]
[376506375,1753999844763,-460.0,0.00019452,2]
[376506377,1753999844773,-1983.66,0.00019452,2]
[376506379,1753999844783,-460.0,0.00019452,2]
[376506381,1753999844792,-460.0,0.00019452,2]
[376506383,1753999844802,-151.0,0.00019452,2]
[376506385,1753999844811,-460.0,0.00019452,2]
[376506386,1753999844821,-151.0,0.00019452,2]
[376506388,1753999844830,-851.35,0.00019452,2]
[376506390,1753999844840,-460.0,0.00019452,2]
[376506392,1753999844849,-724.31,0.00019452,2]
[376506394,1753999844859,-573.13,0.00019452,2]
[376506396,1753999844868,-2062.32,0.00019452,2]
[376506398,1753999844878,-460.0,0.00019452,2]
[376506400,1753999844888,-460.0,0.00019452,2]
[376506402,1753999844901,-460.0,0.00019452,2]
[376506404,1753999844911,-2530.34,0.00019452,2]
[376506406,1753999844921,-717.64,0.00019452,2]
[376506408,1753999844929,-469.43,0.00019452,2]
[376506410,1753999844939,-744.53,0.00019452,2]
[376506412,1753999844948,-245.0,0.00019452,2]
[376506414,1753999844958,-932.97,0.00019452,2]
[376506415,1753999844968,-1062.61,0.00019452,2]
[376506416,1753999844977,-597.94,0.00019452,2]
[376506417,1753999844986,-685.85,0.00019452,2]
[376506418,1753999844996,-460.0,0.00019452,2]
[376506419,1753999845006,-7249.9,0.00019452,2]
[376506420,1753999845015,-6621.28,0.00019452,2]
[376506421,1753999845025,-1492.04,0.00019452,2]
[376506422,1753999845034,-2116.53,0.00019452,2]
[376506423,1753999845044,-460.0,0.00019452,2]
[376506424,1753999845054,-460.0,0.00019452,2]
[376506425,1753999845064,-501.74,0.00019452,2]
[376506426,1753999845073,-460.0,0.00019452,2]
[376506427,1753999845083,-727.73,0.00019452,2]
[376506428,1753999845093,-460.0,0.00019452,2]
[376506429,1753999845102,-712.08,0.00019452,2]
[376506430,1753999845111,-460.0,0.00019452,2]
[376506431,1753999845121,-746.65,0.00019452,2]
[376506432,1753999845130,-229.00625142,0.00019452,2]
[376506433,1753999845140,-1101.15,0.00019452,2]
[376506434,1753999845149,-1134.78,0.00019452,2]
[376506435,1753999845159,-151.0,0.00019452,2]
[376506436,1753999845168,-4132.28,0.00019452,2]
[376506437,1753999845178,-665.6,0.00019452,2]
[376506438,1753999845187,-460.0,0.00019452,2]
[376506439,1753999845196,-1613.35,0.00019452,2]
[376506440,1753999845206,-2189.39,0.00019452,2]
[376506441,1753999845215,-585.0,0.00019452,2]
[376506442,1753999845224,-460.0,0.00019452,2]
[376506443,1753999845233,-2826.98,0.00019452,2]
[376506444,1753999845243,-555.231714,0.00019452,2]
[376506445,1753999845252,-174.245628,0.00019452,2]
[376506446,1753999845261,-460.0,0.00019452,2]
[376506447,1753999845271,-460.0,0.00019452,2]
[376506448,1753999845281,-555.231714,0.00019452,2]
[376506449,1753999845291,-460.0,0.00019452,2]
[376506450,1753999845300,-749.77,0.00019452,2]
[376506451,1753999845309,-174.245628,0.00019452,2]
[376506452,1753999845318,-693.14,0.00019452,2]
[376506453,1753999845328,-460.0,0.00019452,2]
[376506454,1753999845337,-460.0,0.00019452,2]
[376506455,1753999845347,-292.37138575,0.00019452,2]
[376506456,1753999845356,-151.0,0.00019452,2]
[376506457,1753999845366,-460.0,0.00019452,2]
[376506458,1753999845376,-1741.5,0.00019452,2]
[376506459,1753999845386,-151.0,0.00019452,2]
[376506460,1753999845395,-476.04,0.00019452,2]
[376506461,1753999845404,-3069.61,0.00019452,2]
[376506462,1753999845414,-151.0,0.00019452,2]
[376506463,1753999845423,-208.73519652,0.00019452,2]
[376506464,1753999845433,-460.0,0.00019452,2]
[376506465,1753999845443,-460.0,0.00019452,2]
[376506466,1753999845452,-1191.841278,0.00019452,2]
[376506467,1753999845462,-477.7,0.00019452,2]
[376506468,1753999845477,-1191.841278,0.00019452,2]
[376506469,1753999845486,-460.0,0.00019452,2]
[376506470,1753999845496,-460.0,0.00019452,2]
[376506471,1753999845506,-709.63,0.00019452,2]
[376506472,1753999845515,-500.0,0.00019452,2]
[376506473,1753999845525,-1000.0,0.00019455,2]
[376506474,1753999845534,-200.0,0.00019458,15]
[376506475,1753999845544,-200.0,0.00019458,15]
[376506476,1753999845554,-200.0,0.00019458,15]
[376506477,1753999845565,-200.0,0.00019458,15]
[376506478,1753999845575,-200.0,0.00019458,15]
[376506479,1753999845584,-200.0,0.00019458,15]
[376506481,1753999845596,-200.0,0.00019458,15]
[376506483,1753999845606,-200.0,0.00019458,15]
[376506485,1753999845615,-648.22,0.000195,2]
[376506487,1753999845624,-2159.0,0.00019574,2]
[376506489,1753999845633,-635.0,0.00019574,2]
[376506490,1753999845643,-970.0,0.00019574,2]
[376506492,1753999845652,-2042.33017874,0.00019592,2]
[376506494,1753999845662,-151.0,0.00019626,2]
[376506496,1753999845671,-151.0,0.00019626,2]
[376506498,1753999845681,-174.245628,0.00019626,2]
[376506500,1753999845691,-174.245628,0.00019626,2]
[376506502,1753999845701,-151.0,0.00019626,2]
[376506504,1753999845711,-151.0,0.00019626,2]
[376506506,1753999845720,-1189.44913369,0.00019714,2]
[376506508,1753999845730,-151.0,0.00019714,2]
[376506510,1753999845739,-151.0,0.00019714,2]
[376506512,1753999845748,-151.0,0.00019714,2]
[376506514,1753999845758,-500.0,0.00019725,2]
[376506516,1753999845767,-500.0,0.00019725,2]
[376506518,1753999845777,-500.0,0.00019725,2]
[376506520,1753999845786,-500.0,0.00019725,2]
[376506522,1753999845796,-500.0,0.00019725,2]
[376506524,1753999845805,-585.0,0.00019726,2]
[376506526,1753999845816,-151.0,0.00019726,2]
[376506528,1753999845825,-460.0,0.00019726,2]
[376506530,1753999845835,-151.0,0.00019726,2]
[376506532,1753999845844,-460.0,0.00019726,2]
[376506534,1753999845854,-227.595515,0.00019726,2]
[376506535,1753999845864,-227.595515,0.00019726,2]
[376506538,1753999845874,-297.417122,0.00019726,2]
[376506540,1753999845884,-297.417122,0.00019726,2]
[376506541,1753999845898,-460.0,0.00019726,2]
[376506543,1753999845908,-151.0,0.00019726,2]
[376506545,1753999845918,-151.0,0.00019726,2]
[376506546,1753999845929,-169.622966,0.00019726,2]
[376506547,1753999845939,-169.622966,0.00019726,2]
[376506548,1753999845948,-169.622966,0.00019726,2]
[376506549,1753999845958,-169.622966,0.00019726,2]
[376506550,1753999845970,-251.388049,0.00019726,2]
[376506551,1753999845980,-460.0,0.00019726,2]
[376506552,1753999845990,-251.388049,0.00019726,2]
[376506553,1753999846000,-460.0,0.00019726,2]
[376506554,1753999846010,-150.380656,0.00019726,2]
[376506555,1753999846019,-460.0,0.00019726,2]
[376506556,1753999846029,-460.0,0.00019726,2]
[376506557,1753999846039,-151.0,0.00019726,2]
[376506558,1753999846049,-151.0,0.00019726,2]
[376506559,1753999846060,-151.0,0.00019726,2]
[376506561,1753999846071,-151.0,0.00019726,2]
[376506562,1753999846080,-151.0,0.00019726,2]
[376506563,1753999846090,-151.0,0.00019726,2]
[376506564,1753999846100,-151.0,0.00019726,2]
[376506565,1753999846110,-151.0,0.00019726,2]
[376506566,1753999846121,-460.0,0.00019726,2]
[376506567,1753999846129,-460.0,0.00019726,2]
[376506568,1753999846138,-1027.28,0.00019726,2]
[376506580,1753999846289,-460.0,0.00019726,2]
[376506582,1753999846322,-576.4075472,0.00019726,2]
[376506584,1753999846331,-151.0,0.00019726,2]
[376506587,1753999846341,-151.0,0.00019726,2]
[376506589,1753999846350,-460.0,0.00019726,2]
[376506590,1753999846360,-151.0,0.00019726,2]
[376506592,1753999846369,-151.0,0.00019726,2]
[376506594,1753999846378,-460.0,0.00019726,2]
[376506595,1753999846387,-460.0,0.00019726,2]
[376506596,1753999846396,-151.0,0.00019726,2]
[376506598,1753999846405,-151.263225,0.00019726,2]
[376506600,1753999846414,-476.99,0.00019726,2]
[376506602,1753999846423,-151.0,0.00019726,2]
[376506604,1753999846432,-460.0,0.00019726,2]
[376506606,1753999846441,-151.0,0.00019726,2]
[376506607,1753999846451,-151.0,0.00019726,2]
[376506609,1753999846460,-460.0,0.00019726,2]
[376506611,1753999846469,-151.0,0.00019726,2]
[376506613,1753999846479,-151.0,0.00019726,2]
[376506615,1753999846488,-151.0,0.00019726,2]
[376506617,1753999846497,-151.0,0.00019726,2]
[376506619,1753999846507,-200.85836537,0.00019726,2]
[376506621,1753999846516,-151.0,0.00019726,2]
[376506623,1753999846526,-460.0,0.00019726,2]
[376506625,1753999846535,-151.0,0.00019726,2]
[376506627,1753999846543,-498.81,0.00019726,2]
[376506629,1753999846552,-460.0,0.00019726,2]
[376506631,1753999846562,-151.0,0.00019726,2]
[376506633,1753999846571,-151.0,0.00019726,2]
[376506634,1753999846580,-151.0,0.00019726,2]
[376506636,1753999846589,-231.627494,0.00019726,2]
[376506638,1753999846599,-151.0,0.00019726,2]
[376506640,1753999846608,-652.24,0.00019726,2]
[376506642,1753999846617,-151.0,0.00019726,2]
[376506644,1753999846626,-151.0,0.00019726,2]
[376506646,1753999846635,-151.0,0.00019726,2]
[376506648,1753999846645,-669.92,0.00019726,2]
[376506650,1753999846654,-765.73,0.00019726,2]
[376506652,1753999846664,-460.0,0.00019726,2]
[376506654,1753999846674,-591.7,0.00019726,2]
[376506656,1753999846683,-460.0,0.00019726,2]
[376506658,1753999846693,-151.0,0.00019726,2]
[376506660,1753999846703,-179.422101,0.00019726,2]
[376506661,1753999846712,-460.0,0.00019726,2]
[376506663,1753999846722,-151.0,0.00019726,2]
[376506665,1753999846732,-2242.22,0.00019726,2]
[376506667,1753999846741,-151.0,0.00019726,2]
[376506669,1753999846751,-460.0,0.00019726,2]
[376506671,1753999846760,-777.89,0.00019726,2]
[376506673,1753999846770,-151.0,0.00019726,2]
[376506675,1753999846780,-151.0,0.00019726,2]
[376506677,1753999846789,-151.0,0.00019726,2]
[376506679,1753999846798,-151.0,0.00019726,2]
[376506681,1753999846808,-1143.02,0.00019726,2]
[376506683,1753999846818,-460.0,0.00019726,2]
[376506685,1753999846828,-460.0,0.00019726,2]
[376506687,1753999846837,-1064.61,0.00019726,2]
[376506689,1753999846848,-806.73,0.00019726,2]
[376506691,1753999846857,-603.17813512,0.00019726,2]
[376506693,1753999846866,-1983.66,0.00019726,2]
[376506695,1753999846877,-460.0,0.00019726,2]
[376506697,1753999846886,-460.0,0.00019726,2]
[376506699,1753999846900,-460.0,0.00019726,2]
[376506701,1753999846910,-151.0,0.00019726,2]
[376506702,1753999846919,-851.35,0.00019726,2]
[376506704,1753999846928,-460.0,0.00019726,2]
[376506706,1753999846938,-724.31,0.00019726,2]
[376506708,1753999846948,-573.13,0.00019726,2]
[376506710,1753999846957,-2062.32,0.00019726,2]
[376506712,1753999846967,-460.0,0.00019726,2]
[376506714,1753999846977,-460.0,0.00019726,2]
[376506716,1753999846986,-460.0,0.00019726,2]
[376506718,1753999846995,-2530.34,0.00019726,2]
[376506720,1753999847006,-717.64,0.00019726,2]
[376506722,1753999847015,-469.43,0.00019726,2]
[376506724,1753999847025,-744.53,0.00019726,2]
[376506726,1753999847034,-932.97,0.00019726,2]
[376506728,1753999847044,-1062.61,0.00019726,2]
[376506730,1753999847054,-597.94,0.00019726,2]
[376506732,1753999847064,-685.85,0.00019726,2]
[376506734,1753999847073,-460.0,0.00019726,2]
[376506736,1753999847083,-7249.9,0.00019726,2]
[376506738,1753999847093,-6621.28,0.00019726,2]
[376506740,1753999847102,-1492.04,0.00019726,2]
[376506741,1753999847111,-2116.53,0.00019726,2]
[376506743,1753999847120,-460.0,0.00019726,2]
[376506745,1753999847130,-460.0,0.00019726,2]
[376506747,1753999847139,-501.74,0.00019726,2]
[376506749,1753999847148,-460.0,0.00019726,2]
[376506751,1753999847157,-727.73,0.00019726,2]
[376506753,1753999847167,-460.0,0.00019726,2]
[376506755,1753999847176,-712.08,0.00019726,2]
[376506757,1753999847185,-460.0,0.00019726,2]
[376506759,1753999847194,-746.65,0.00019726,2]
[376506761,1753999847203,-1101.15,0.00019726,2]
[376506763,1753999847213,-1134.78,0.00019726,2]
[376506765,1753999847222,-151.0,0.00019726,2]
[376506767,1753999847232,-4132.28,0.00019726,2]
[376506769,1753999847241,-665.6,0.00019726,2]
[376506771,1753999847250,-460.0,0.00019726,2]
[376506773,1753999847259,-1613.35,0.00019726,2]
[376506775,1753999847270,-2189.39,0.00019726,2]
[376506777,1753999847279,-460.0,0.00019726,2]
[376506779,1753999847288,-2826.98,0.00019726,2]
[376506781,1753999847298,-555.231714,0.00019726,2]
[376506783,1753999847307,-555.231714,0.00019726,2]
[376506785,1753999847319,-460.0,0.00019726,2]
[376506787,1753999847328,-174.245628,0.00019726,2]
[376506789,1753999847337,-460.0,0.00019726,2]
[376506791,1753999847347,-555.231714,0.00019726,2]
[376506793,1753999847356,-555.231714,0.00019726,2]
[376506795,1753999847366,-460.0,0.00019726,2]
[376506797,1753999847375,-749.77,0.00019726,2]
[376506799,1753999847384,-174.245628,0.00019726,2]
[376506801,1753999847393,-693.14,0.00019726,2]
[376506803,1753999847402,-460.0,0.00019726,2]
[376506805,1753999847411,-151.0,0.00019726,2]
[376506806,1753999847420,-460.0,0.00019726,2]
[376506808,1753999847430,-1741.5,0.00019726,2]
[376506810,1753999847439,-3069.61,0.00019726,2]
[376506812,1753999847448,-476.04,0.00019726,2]
[376506814,1753999847457,-151.0,0.00019726,2]
[376506816,1753999847466,-460.0,0.00019726,2]
[376506818,1753999847475,-460.0,0.00019726,2]
[376506820,1753999847485,-1191.841278,0.00019726,2]
[376506822,1753999847494,-1191.841278,0.00019726,2]
[376506824,1753999847503,-477.7,0.00019726,2]
[376506826,1753999847512,-1191.841278,0.00019726,2]
[376506828,1753999847521,-1191.841278,0.00019726,2]
[376506830,1753999847530,-463.54,0.00019726,2]
[376506832,1753999847539,-460.0,0.00019726,2]
[376506834,1753999847548,-709.63,0.00019726,2]
[376506836,1753999847558,-501.1504341,0.00019753,2]
[376506838,1753999847568,-500.0,0.00019753,2]
[376506840,1753999847577,-504.20801351,0.00019772,2]
[376506842,1753999847586,-231.09006025,0.00019772,2]
[376506844,1753999847595,-503.3097924,0.00019772,2]
[376506846,1753999847604,-500.0,0.00019773,2]
[376506848,1753999847614,-500.0,0.00019773,2]
[376506850,1753999847622,-500.0,0.00019773,2]
[376506852,1753999847631,-4744.38350474,0.00019823,2]
[376506854,1753999847640,-160.0,0.00019825,2]
[376506856,1753999847650,-216.18812866,0.00019825,2]
[376506858,1753999847659,-160.0,0.00019825,2]
[376506860,1753999847668,-231.48161788,0.00019825,2]
[376506862,1753999847677,-460.682337,0.00019825,2]
[376506864,1753999847686,-160.0,0.00019825,2]
[376506866,1753999847696,-160.0,0.00019825,2]
[376506868,1753999847705,-160.0,0.00019829,2]
[376506870,1753999847714,-841.37753757,0.00019829,2]
[376506872,1753999847723,-160.0,0.00019829,2]
[376506874,1753999847733,-160.0,0.00019829,2]
[376506876,1753999847742,-526.848153,0.00019829,2]
[376506877,1753999847751,-214.99831783,0.00019829,2]
[376506879,1753999847760,-12642.0599901,0.00019829,2]
[376506881,1753999847769,-151.0,0.00019829,2]
[376506883,1753999847779,-174.245628,0.00019829,2]
[376506885,1753999847788,-174.245628,0.00019829,2]
[376506887,1753999847796,-151.0,0.00019829,2]
[376506889,1753999847807,-151.0,0.00019829,2]
[376506892,1753999847819,-500.0,0.00019835,2]
[376506894,1753999847828,-179.76630381,0.00019845,2]
[376506896,1753999847838,-430.2927267,0.00019863,2]
[376506898,1753999847847,-430.2927267,0.00019863,2]
[376506899,1753999847856,-430.2927267,0.00019863,2]
[376506901,1753999847866,-430.2927267,0.00019863,2]
[376506903,1753999847875,-425.4379864,0.00019863,2]
[376506906,1753999847885,-151.0,0.00019889,2]
[376506907,1753999847897,-297.417122,0.00019889,2]
[376506909,1753999847906,-297.417122,0.00019889,2]
[376506911,1753999847916,-251.388049,0.00019889,2]
[376506913,1753999847925,-251.388049,0.00019889,2]
[376506916,1753999847935,-151.0,0.000199,2]
[376506917,1753999847944,-151.0,0.000199,2]
[376506920,1753999847954,-151.0,0.000199,2]
[376506922,1753999847963,-151.0,0.000199,2]
[376506923,1753999847974,-151.0,0.000199,2]
[376506926,1753999847983,-411.127199,0.0001993,2]
[376506927,1753999847993,-2042.33017874,0.00019968,2]
[376506929,1753999848003,-500.0,0.00019973,2]
[376506932,1753999848013,-500.0,0.00019973,2]
[376506934,1753999848023,-4639.90933836,0.00019973,2]
[376506935,1753999848032,-151.0,0.00019973,2]
[376506938,1753999848043,-151.0,0.00019973,2]
[376506940,1753999848053,-151.0,0.00019973,2]
[376506942,1753999848062,-1191.841278,0.00019973,2]
[376506944,1753999848073,-1191.841278,0.00019973,2]
[376506946,1753999848083,-500.0,0.00019998,2]
[376506948,1753999848092,-500.0,0.00019998,2]
[376506949,1753999848102,-274.97916556,0.00019998,2]
[376506952,1753999848112,-500.0,0.00019998,2]
[376506953,1753999848121,-500.0,0.00019998,2]
[376506955,1753999848131,-500.0,0.00019998,2]
[376506958,1753999848140,-500.0,0.00019998,2]
[376506960,1753999848150,-500.0,0.00019998,2]
[376506962,1753999848159,-500.0,0.00019998,2]
[376506963,1753999848169,-500.0,0.00019998,2]
[376506965,1753999848178,-500.0,0.00019998,2]
[376506967,1753999848188,-500.0,0.00019998,2]
[376506969,1753999848197,-500.0,0.00019998,2]
[376506971,1753999848206,-500.0,0.00019998,2]
[376506974,1753999848216,-500.0,0.00019998,2]
[376506976,1753999848226,-618.38944996,0.00019998,2]
[376506977,1753999848235,-224.855213,0.00019999,2]
[376506980,1753999848244,-151.0,0.00019999,2]
[376506982,1753999848257,-155.391068,0.00019999,2]
[376506984,1753999848267,-155.391068,0.00019999,2]
[376506986,1753999848278,-500.0,0.00019999,2]
[376506988,1753999848287,-587.22,0.00019999,2]
[376506990,1753999848296,-585.0,0.0002,2]
[376506992,1753999848305,-151.0,0.0002,2]
[376506994,1753999848316,-151.0,0.0002,2]
[376506996,1753999848326,-151.183589,0.0002,2]
[376506998,1753999848335,-151.0,0.0002,2]
[376507000,1753999848344,-151.0,0.0002,2]
[376507002,1753999848353,-151.85314,0.0002,2]